fUST/lending_fUST_20240116
["ID","MTS","AMOUNT","RATE_DAILY","PERIOD"]
[311737715,1705371045299,-396.57926146,0.00024321,2]
[311737717,1705371045308,-500.0,0.00024321,2]
[311737719,1705371045317,-198.8577961,0.00024384,2]
[311737721,1705371045327,-402.1544893,0.00024384,2]
[311737723,1705371045335,-198.8577961,0.00024384,2]
[311737725,1705371045345,-198.8577961,0.00024384,2]
[311737727,1705371045354,-395.3208574,0.00024384,2]
[311737729,1705371045363,-198.8577961,0.00024384,2]
[311737731,1705371045372,-198.8577961,0.00024384,2]
[311737733,1705371045381,-167.895041,0.00024482,2]
[311737735,1705371045391,-532.72,0.0002457,2]
[311737737,1705371045401,-539.18,0.0002457,2]
[311737739,1705371045410,-3396.35,0.0002457,2]
[311737741,1705371045419,-1199.85,0.0002457,2]
[311737743,1705371045428,-518.46,0.0002457,2]
[311737745,1705371045437,-706.36,0.0002457,2]
[311737747,1705371045446,-639.13,0.0002457,2]
[311737749,1705371045456,-500.24,0.0002457,2]
[311737751,1705371045469,-887.61,0.0002457,2]
[311737753,1705371045478,-785.76,0.0002457,2]
[311737755,1705371045487,-4810.61,0.0002457,2]
[311737757,1705371045496,-3676.21,0.0002457,2]
[311737759,1705371045506,-2775.56,0.0002457,2]
[311737761,1705371045515,-2300.91,0.0002457,2]
[311737763,1705371045524,-13208.17,0.0002457,2]
[311737765,1705371045535,-500.0,0.0002457,2]
[311737767,1705371045544,-500.0,0.0002457,2]
[311737769,1705371045553,-2062.46,0.0002457,2]
[311737771,1705371045563,-619.05,0.00024583,2]
[311737773,1705371045572,-500.0,0.00024583,2]
[311737775,1705371045582,-787.41,0.00024583,2]
[311737777,1705371045591,-1616.2,0.00024583,2]
[311737779,1705371045600,-500.0,0.00024583,2]
[311737781,1705371045610,-657.89,0.00024583,2]
[311737783,1705371045619,-500.0,0.00024583,2]
[311737785,1705371045628,-964.53,0.00024583,2]
[311737787,1705371045637,-500.0,0.00024583,2]
[311737789,1705371045646,-698.44,0.00024583,2]
[311737791,1705371045656,-2857.24,0.00024583,2]
[311737793,1705371045665,-500.0,0.00024584,2]
[311737795,1705371045674,-500.0,0.00024584,2]
[311737797,1705371045683,-815.97,0.00024584,2]
[311737799,1705371045692,-500.0,0.00024584,2]
[311737801,1705371045701,-573.95,0.00024584,2]
[311737803,1705371045713,-500.0,0.00024584,2]
[311737805,1705371045722,-500.0,0.00024584,2]
[311737807,1705371045731,-1187.338202,0.00024584,2]
[311737809,1705371045740,-1187.338202,0.00024584,2]
[311737811,1705371045749,-621.85754,0.00024585,2]
[311737813,1705371045758,-621.85754,0.00024585,2]
[311737815,1705371045767,-500.0,0.00024594,2]
[311737817,1705371045777,-1042.82,0.00024594,2]
[311737819,1705371045786,-500.0,0.00024594,2]
[311737821,1705371045796,-633.77,0.00024594,2]
[311737823,1705371045805,-1871.85,0.00024594,2]
[311737825,1705371045814,-500.0,0.00024595,2]
[311737826,1705371045823,-388.5668798,0.00024657,2]
[311737829,1705371045834,-572.5019726,0.00024657,2]
[311737831,1705371045843,-155.57212949,0.00024796,2]
[311737832,1705371045854,-532.72,0.00024844,2]
[311737834,1705371045863,-539.18,0.00024844,2]
[311737836,1705371045872,-3396.35,0.00024844,2]
[311737838,1705371045882,-1199.85,0.00024844,2]
[311737840,1705371045891,-518.46,0.00024844,2]
[311737842,1705371045901,-706.36,0.00024844,2]
[311737844,1705371045910,-639.13,0.00024844,2]
[311737846,1705371045919,-500.24,0.00024844,2]
[311737848,1705371045928,-887.61,0.00024844,2]
[311737850,1705371045938,-785.76,0.00024844,2]
[311737852,1705371045948,-4810.61,0.00024844,2]
[311737854,1705371045957,-2775.56,0.00024844,2]
[311737856,1705371045971,-3676.21,0.00024844,2]
[311737858,1705371045980,-2300.91,0.00024844,2]
[311737860,1705371045990,-13208.17,0.00024844,2]
[311737862,1705371045999,-500.0,0.00024844,2]
[311737864,1705371046008,-500.0,0.00024844,2]
[311737866,1705371046017,-2062.46,0.00024844,2]
[311737868,1705371046026,-619.05,0.00024857,2]
[311737870,1705371046035,-500.0,0.00024857,2]
[311737872,1705371046044,-787.41,0.00024857,2]
[311737874,1705371046054,-1616.2,0.00024857,2]
[311737876,1705371046063,-500.0,0.00024857,2]
[311737878,1705371046072,-657.89,0.00024857,2]
[311737880,1705371046082,-500.0,0.00024857,2]
[311737882,1705371046091,-964.53,0.00024857,2]
[311737884,1705371046100,-500.0,0.00024857,2]
[311737886,1705371046109,-698.44,0.00024857,2]
[311737888,1705371046118,-2857.24,0.00024857,2]
[311737890,1705371046127,-534.20983853,0.00024858,2]
[311737892,1705371046137,-500.0,0.00024858,2]
[311737894,1705371046146,-815.97,0.00024858,2]
[311737896,1705371046155,-500.0,0.00024858,2]
[311737898,1705371046164,-573.95,0.00024858,2]
[311737913,1705371046173,-500.0,0.00024858,2]
[311737918,1705371046261,-500.0,0.00024858,2]
[311737921,1705371046270,-1187.338202,0.00024858,2]
[311737924,1705371046280,-1187.338202,0.00024858,2]
[311737926,1705371046288,-500.0,0.00024868,2]
[311737928,1705371046298,-1042.82,0.00024868,2]
[311737930,1705371046307,-500.0,0.00024868,2]
[311737932,1705371046316,-633.77,0.00024868,2]
[311737934,1705371046325,-1871.85,0.00024868,2]
[311737936,1705371046334,-500.0,0.00024869,2]
[311737938,1705371046343,-497.68470195,0.0002495,5]
[311737940,1705371046352,-1049.13208089,0.00025,2]
[311737942,1705371046361,-910.06774376,0.00025,2]
[311737943,1705371046370,-167.23804106,0.00025,2]
[311737945,1705371046379,-678.60233026,0.00025,2]
[311737947,1705371046388,-922.36653171,0.00025001,2]
[311737949,1705371046398,-621.85754,0.00025017,2]
[311737951,1705371046406,-621.85754,0.00025017,2]
[311737953,1705371046415,-867.52029566,0.00025017,2]
[311737955,1705371046424,-532.72,0.00025118,2]
[311737957,1705371046433,-539.18,0.00025118,2]
[311737959,1705371046442,-3396.35,0.00025118,2]
[311737961,1705371046452,-1199.85,0.00025118,2]
[311737963,1705371046461,-518.46,0.00025118,2]
[311737965,1705371046469,-706.36,0.00025118,2]
[311737967,1705371046478,-639.13,0.00025118,2]
[311737969,1705371046487,-500.24,0.00025118,2]
[311737971,1705371046496,-887.61,0.00025118,2]
[311737973,1705371046505,-785.76,0.00025118,2]
[311737975,1705371046514,-4810.61,0.00025118,2]
[311737977,1705371046524,-2775.56,0.00025118,2]
[311737979,1705371046533,-3676.21,0.00025118,2]
[311737981,1705371046543,-2300.91,0.00025118,2]
[311737983,1705371046552,-13208.17,0.00025118,2]
[311737985,1705371046562,-500.0,0.00025118,2]
[311737987,1705371046571,-461.37135036,0.00025118,2]
[311737989,1705371046580,-2062.46,0.00025118,2]
[311737991,1705371046589,-619.05,0.00025131,2]
[311737993,1705371046599,-500.0,0.00025131,2]
[311737995,1705371046608,-787.41,0.00025131,2]
[311737997,1705371046618,-1616.2,0.00025131,2]
[311737998,1705371046627,-500.0,0.00025131,2]
[311738000,1705371046636,-657.89,0.00025131,2]
[311738002,1705371046645,-500.0,0.00025131,2]
[311738004,1705371046654,-964.53,0.00025131,2]
[311738006,1705371046666,-500.0,0.00025131,2]
[311738008,1705371046677,-698.44,0.00025131,2]
[311738010,1705371046686,-2857.24,0.00025131,2]
[311738012,1705371046695,-500.0,0.00025132,2]
[311738015,1705371046708,-815.97,0.00025132,2]
[311738016,1705371046718,-500.0,0.00025132,2]
[311738019,1705371046728,-573.95,0.00025132,2]
[311738021,1705371046738,-500.0,0.00025132,2]
[311738022,1705371046747,-500.0,0.00025132,2]
[311738024,1705371046756,-1187.338202,0.00025132,2]
[311738026,1705371046765,-1187.338207,0.00025132,2]
[311738028,1705371046775,-500.0,0.00025142,2]
[311738030,1705371046784,-1042.82,0.00025142,2]
[311738032,1705371046794,-500.0,0.00025142,2]
[311738034,1705371046803,-633.77,0.00025142,2]
[311738036,1705371046812,-1871.85,0.00025142,2]
[311738038,1705371046821,-500.0,0.00025143,2]
[311738040,1705371046830,-151.0,0.00025215,2]
[311738042,1705371046839,-532.72,0.00025392,2]
[311738044,1705371046849,-539.18,0.00025392,2]
[311738046,1705371046858,-3396.35,0.00025392,2]
[311738048,1705371046867,-1199.85,0.00025392,2]
[311738050,1705371046877,-518.46,0.00025392,2]
[311738052,1705371046886,-706.36,0.00025392,2]
[311738054,1705371046895,-639.13,0.00025392,2]
[311738056,1705371046905,-500.24,0.00025392,2]
[311738058,1705371046914,-887.61,0.00025392,2]
[311738060,1705371046923,-785.76,0.00025392,2]
[311738062,1705371046932,-4810.61,0.00025392,2]
[311738064,1705371046941,-2775.56,0.00025392,2]
[311738066,1705371046951,-3676.21,0.00025392,2]
[311738067,1705371046960,-2300.91,0.00025392,2]
[311738069,1705371046969,-13208.17,0.00025392,2]
[311738070,1705371046978,-500.0,0.00025392,2]
[311738072,1705371046987,-2062.46,0.00025392,2]
[311738074,1705371046996,-621.85754,0.00025392,2]
[311738076,1705371047006,-621.85753311,0.00025392,2]
[311738078,1705371047016,-619.05,0.00025405,2]
[311738080,1705371047024,-500.0,0.00025405,2]
[311738082,1705371047033,-787.41,0.00025405,2]
[311738084,1705371047042,-1616.2,0.00025405,2]
[311738086,1705371047051,-500.0,0.00025405,2]
[311738088,1705371047060,-657.89,0.00025405,2]
[311738090,1705371047069,-500.0,0.00025405,2]
[311738092,1705371047078,-964.53,0.00025405,2]
[311738094,1705371047088,-500.0,0.00025405,2]
[311738096,1705371047096,-698.44,0.00025405,2]
[311738097,1705371047105,-2857.24,0.00025405,2]
[311738099,1705371047114,-500.0,0.00025406,2]
[311738101,1705371047123,-815.97,0.00025406,2]
[311738103,1705371047132,-500.0,0.00025406,2]
[311738105,1705371047141,-573.95,0.00025406,2]
[311738107,1705371047150,-500.0,0.00025406,2]
[311738109,1705371047159,-500.0,0.00025406,2]
[311738111,1705371047168,-50000.0,0.00025413,2]
[311738113,1705371047177,-500.0,0.00025416,2]
[311738115,1705371047185,-1042.82,0.00025416,2]
[311738117,1705371047194,-500.0,0.00025416,2]
[311738119,1705371047203,-633.77,0.00025416,2]
[311738121,1705371047213,-1871.85,0.00025416,2]
[311738122,1705371047222,-500.0,0.00025417,2]
[311738124,1705371047231,-50000.0,0.00025454,2]
[311738126,1705371047240,-50000.0,0.00025454,2]
[311738128,1705371047249,-50000.0,0.00025464,2]
[311738130,1705371047258,-532.72,0.00025666,2]
[311738132,1705371047268,-539.18,0.00025666,2]
[311738134,1705371047277,-3396.35,0.00025666,2]
[311738136,1705371047286,-1199.85,0.00025666,2]
[311738138,1705371047295,-518.46,0.00025666,2]
[311738140,1705371047305,-706.36,0.00025666,2]
[311738142,1705371047314,-639.13,0.00025666,2]
[311738144,1705371047324,-500.24,0.00025666,2]
[311738146,1705371047333,-887.61,0.00025666,2]
[311738148,1705371047342,-785.76,0.00025666,2]
[311738150,1705371047351,-4810.61,0.00025666,2]
[311738151,1705371047360,-2775.56,0.00025666,2]
[311738153,1705371047370,-3676.21,0.00025666,2]
[311738155,1705371047379,-2300.91,0.00025666,2]
[311738157,1705371047388,-13208.17,0.00025666,2]
[311738159,1705371047397,-500.0,0.00025666,2]
[311738161,1705371047407,-2062.46,0.00025666,2]
[311738163,1705371047416,-619.05,0.00025679,2]
[311738165,1705371047424,-500.0,0.00025679,2]
[311738167,1705371047433,-787.41,0.00025679,2]
[311738169,1705371047443,-1616.2,0.00025679,2]
[311738171,1705371047452,-500.0,0.00025679,2]
[311738173,1705371047462,-657.89,0.00025679,2]
[311738175,1705371047471,-500.0,0.00025679,2]
[311738177,1705371047480,-964.53,0.00025679,2]
[311738179,1705371047489,-500.0,0.00025679,2]
[311738181,1705371047498,-698.44,0.00025679,2]
[311738183,1705371047507,-2857.24,0.00025679,2]
[311738185,1705371047517,-500.0,0.0002568,2]
[311738187,1705371047526,-815.97,0.0002568,2]
[311738189,1705371047535,-500.0,0.0002568,2]
[311738191,1705371047544,-573.95,0.0002568,2]
[311738193,1705371047553,-500.0,0.0002568,2]
[311738195,1705371047563,-500.0,0.0002568,2]
[311738197,1705371047572,-1000.0,0.00025682,2]
[311738198,1705371047582,-500.0,0.0002569,2]
[311738200,1705371047591,-1042.82,0.0002569,2]
[311738202,1705371047601,-500.0,0.0002569,2]
[311738204,1705371047611,-633.77,0.0002569,2]
[311738206,1705371047646,-1871.85,0.0002569,2]
[311738208,1705371047656,-202.2567471,0.00025691,2]
[311738210,1705371047666,-300.0,0.00025748,2]
[311738211,1705371047675,-215.25767397,0.00025758,2]
[311738212,1705371047684,-1013.56596388,0.00025787,2]
[311738213,1705371047693,-2000.0,0.000258,2]
[311738214,1705371047702,-2000.0,0.0002581,2]
[311738215,1705371047711,-2000.0,0.0002582,2]
[311738216,1705371047721,-2000.0,0.0002583,2]
[311738217,1705371047733,-2000.0,0.0002584,2]
[311738218,1705371047742,-2000.0,0.0002585,2]
[311738219,1705371047752,-2000.0,0.0002586,2]
[311738220,1705371047760,-1000.0,0.00025864,2]
[311738221,1705371047769,-2000.0,0.0002587,2]
[311738222,1705371047778,-2000.0,0.0002588,2]
[311738223,1705371047787,-2000.0,0.0002589,2]
[311738224,1705371047797,-2000.0,0.000259,2]
[311738225,1705371047807,-2000.0,0.0002591,2]
[311738227,1705371047816,-2000.0,0.0002592,2]
[311738229,1705371047825,-2000.0,0.0002593,2]
[311738231,1705371047835,-2000.0,0.0002594,2]
[311738233,1705371047844,-532.72,0.0002594,2]
[311738235,1705371047854,-539.18,0.0002594,2]
[311738238,1705371047863,-3396.35,0.0002594,2]
[311738239,1705371047872,-1199.85,0.0002594,2]
[311738241,1705371047881,-518.46,0.0002594,2]
[311738243,1705371047890,-706.36,0.0002594,2]
[311738245,1705371047900,-639.13,0.0002594,2]
[311738247,1705371047908,-500.24,0.0002594,2]
[311738249,1705371047918,-887.61,0.0002594,2]
[311738251,1705371047927,-785.76,0.0002594,2]
[311738253,1705371047936,-4810.61,0.0002594,2]
[311738255,1705371047946,-2775.56,0.0002594,2]
[311738257,1705371047955,-3676.21,0.0002594,2]
[311738259,1705371047967,-2300.91,0.0002594,2]
[311738261,1705371047976,-13208.17,0.0002594,2]
[311738263,1705371047985,-500.0,0.0002594,2]
[311738265,1705371047994,-2062.46,0.0002594,2]
[311738267,1705371048004,-2000.0,0.0002595,2]
[311738269,1705371048013,-619.05,0.00025953,2]
[311738271,1705371048023,-500.0,0.00025953,2]
[311738273,1705371048032,-787.41,0.00025953,2]
[311738275,1705371048042,-1616.2,0.00025953,2]
[311738277,1705371048052,-500.0,0.00025953,2]
[311738279,1705371048062,-657.89,0.00025953,2]
[311738281,1705371048071,-500.0,0.00025953,2]
[311738283,1705371048080,-964.53,0.00025953,2]
[311738285,1705371048089,-500.0,0.00025953,2]
[311738287,1705371048099,-698.44,0.00025953,2]
[311738288,1705371048109,-2857.24,0.00025953,2]
[311738291,1705371048119,-500.0,0.00025954,2]
[311738292,1705371048129,-815.97,0.00025954,2]
[311738295,1705371048139,-500.0,0.00025954,2]
[311738296,1705371048149,-573.95,0.00025954,2]
[311738298,1705371048160,-500.0,0.00025954,2]
[311738308,1705371048242,-500.0,0.00025954,2]
[311738310,1705371048252,-2000.0,0.0002596,2]
[311738312,1705371048261,-500.0,0.00025964,2]
[311738314,1705371048271,-1042.82,0.00025964,2]
[311738316,1705371048281,-500.0,0.00025964,2]
[311738317,1705371048290,-633.77,0.00025964,2]
[311738319,1705371048300,-1871.85,0.00025964,2]
[311738322,1705371048311,-2000.0,0.0002597,2]
[311738324,1705371048321,-2000.0,0.0002598,2]
[311738325,1705371048331,-2744.311707,0.0002599,2]
[311738328,1705371048342,-532.72,0.00026214,2]
[311738330,1705371048352,-539.18,0.00026214,2]
[311738332,1705371048362,-3396.35,0.00026214,2]
[311738333,1705371048372,-1199.85,0.00026214,2]
[311738336,1705371048383,-518.46,0.00026214,2]
[311738337,1705371048393,-706.36,0.00026214,2]
[311738339,1705371048403,-639.13,0.00026214,2]
[311738341,1705371048413,-500.24,0.00026214,2]
[311738344,1705371048423,-887.61,0.00026214,2]
[311738345,1705371048432,-785.76,0.00026214,2]
[311738347,1705371048441,-4810.61,0.00026214,2]
[311738350,1705371048451,-2775.56,0.00026214,2]
[311738351,1705371048461,-3676.21,0.00026214,2]
[311738353,1705371048470,-2300.91,0.00026214,2]
[311738355,1705371048479,-13208.17,0.00026214,2]
[311738357,1705371048488,-500.0,0.00026214,2]
[311738359,1705371048497,-2062.46,0.00026214,2]
[311738361,1705371048506,-619.05,0.00026227,2]
[311738363,1705371048515,-500.0,0.00026227,2]
[311738365,1705371048524,-787.41,0.00026227,2]
[311738367,1705371048533,-1616.2,0.00026227,2]
[311738369,1705371048542,-500.0,0.00026227,2]
[311738371,1705371048551,-657.89,0.00026227,2]
[311738373,1705371048560,-500.0,0.00026227,2]
[311738375,1705371048569,-964.53,0.00026227,2]
[311738376,1705371048578,-500.0,0.00026227,2]
[311738378,1705371048587,-698.44,0.00026227,2]
[311738380,1705371048597,-2857.24,0.00026227,2]
[311738382,1705371048606,-500.0,0.00026228,2]
[311738384,1705371048616,-815.97,0.00026228,2]
[311738386,1705371048625,-500.0,0.00026228,2]
[311738388,1705371048633,-573.95,0.00026228,2]
[311738390,1705371048643,-500.0,0.00026228,2]
[311738392,1705371048651,-500.0,0.00026228,2]
[311738394,1705371048660,-500.0,0.00026238,2]
[311738396,1705371048669,-1042.82,0.00026238,2]
[311738398,1705371048682,-500.0,0.00026238,2]
[311738400,1705371048691,-633.77,0.00026238,2]
[311738402,1705371048700,-1871.85,0.00026238,2]
[311738404,1705371048711,-632.37601478,0.00026268,2]
[311738406,1705371048722,-532.72,0.00026488,2]
[311738408,1705371048731,-539.18,0.00026488,2]
[311738410,1705371048741,-2163.75871784,0.00026488,2]
[311738418,1705371048805,-1232.59128216,0.00026488,2]
[311738420,1705371048814,-1199.85,0.00026488,2]
[311738422,1705371048823,-518.46,0.00026488,2]
[311738424,1705371048832,-706.36,0.00026488,2]
[311738426,1705371048842,-639.13,0.00026488,2]
[311738428,1705371048851,-500.24,0.00026488,2]
[311738430,1705371048862,-887.61,0.00026488,2]
[311738432,1705371048872,-785.76,0.00026488,2]
[311738434,1705371048881,-3419.77671694,0.00026488,2]
[311738456,1705371049091,-500.0,0.00022104,2]
[311738459,1705371049103,-500.0,0.00022104,2]
[311738460,1705371049112,-500.0,0.00022378,2]
[311738462,1705371049122,-500.0,0.00022378,2]
[311738464,1705371049131,-500.0,0.00022378,2]
[311738466,1705371049143,-500.0,0.00022652,2]
[311738468,1705371049153,-500.0,0.00022652,2]
[311738470,1705371049162,-500.0,0.00022652,2]
[311738472,1705371049172,-500.0,0.00022926,2]
[311738475,1705371049182,-500.0,0.00022926,2]
[311738476,1705371049192,-379.29384136,0.000232,2]
[311738485,1705371049264,-120.70615864,0.000232,2]
[311738487,1705371049273,-133.24891126,0.000232,2]
[311741802,1705371261667,283.497635,0.00021328,2]
[311741804,1705371307823,155.51338344,0.000265,30]
[311741806,1705371380709,166.666666,0.00021918,2]
[311741808,1705371449688,164.57784,0.00020945,2]
[311741815,1705371635205,17695.8896317,0.00021262,2]
[311741821,1705371658156,6243.5825606,0.00021219,2]
[311741834,1705371807070,612.17253697,0.00021219,2]
[311741835,1705371813383,276.2781393,0.00021219,2]
[311741836,1705371815063,155.07355916,0.00021219,2]
[311741837,1705371829356,297.66006512,0.00021219,2]
[311741838,1705371848487,1252.01139802,0.00022101,2]
[311741839,1705371864595,1338.44706863,0.00022101,2]
[311741841,1705371885411,166.666666,0.00021918,2]
[311741843,1705371893821,2777.08346351,0.00022101,2]
[311741844,1705371894336,3835.26426086,0.00022101,2]
[311741845,1705371894522,10515.69454875,0.00022101,2]
[311741846,1705371894725,10049.81078039,0.00022101,2]
[311741847,1705371896917,-8014.37950025,0.00021438,2]
[311741848,1705371897019,-163.55876531,0.00021438,2]
[311741849,1705371902108,-241.42044357,0.00021437,2]
[311741850,1705371902246,-4.92694783,0.00021437,2]
[311741851,1705371903041,236.49349574,0.00016575,2]
[311741852,1705371903069,241.42044357,0.00016575,2]
[311741853,1705371903095,241.42044357,0.00016575,2]
[311741854,1705371903120,747.95706892,0.00016575,2]
[311741855,1705371903297,-3412.29184888,0.00021658,2]
[311741856,1705371903397,-69.63860916,0.00021658,2]
[311741857,1705371904582,977.00673826,0.0001989,2]
[311741858,1705371907089,-575.93950483,0.00021657,2]
[311741859,1705371907380,-11.75386744,0.00021657,2]
[311741860,1705371912338,3835.26426086,0.0001989,2]
[311741861,1705371914053,155.0,0.0001989,2]
[311741862,1705371916220,547.3613648,0.0001989,2]
[311741863,1705371917037,10290.39182557,0.0001989,2]
[311741864,1705371917215,620.05138771,0.0001989,2]
[311741865,1705371919858,182.7245571,0.0001989,2]
[311741866,1705371920060,3215.01498963,0.0001989,2]
[311741867,1705371920986,1433.62620306,0.00016574,2]
[311741868,1705371921017,-3425.14171899,0.00021657,2]
[311741869,1705371921210,-69.90085141,0.00021657,2]
[311741870,1705371922624,1047.02032618,0.00019889,2]
[311741871,1705371925060,155.0,0.0001989,2]
[311741872,1705371925789,342.75344633,0.0001989,2]
[311741873,1705371925861,1261.88614,0.0001989,2]
[311741874,1705371925913,155.0,0.0001989,2]
[311741875,1705371927772,534.59567802,0.0001989,2]
[311741876,1705371929431,620.05138771,0.0001989,2]
[311741877,1705371930570,1274.86341873,0.0001989,2]
[311741878,1705371932076,155.25889874,0.0001989,2]
[311741879,1705371932188,547.3613648,0.0001989,2]
[311741880,1705371934332,169.80275254,0.0001989,2]
[311741881,1705371935782,182.7245571,0.0001989,2]
[311741882,1705371936055,3215.01498963,0.0001989,2]
[311741883,1705371936462,3835.26426086,0.0001989,2]
[311741884,1705371937038,10290.39182557,0.0001989,2]
[311741885,1705371939056,155.0,0.0001989,2]
[311741886,1705371943787,511.55851892,0.0001989,2]
[311741887,1705371943815,342.75344633,0.0001989,2]
[311741888,1705371943908,155.0,0.0001989,2]
[311741889,1705371944571,1274.86341873,0.0001989,2]
[311741890,1705371945767,155.0,0.0001989,2]
[311741891,1705371947867,1261.88614,0.0001989,2]
[311741892,1705371948193,547.3613648,0.0001989,2]
[311741893,1705371953213,620.05138771,0.0001989,2]
[311741894,1705371954351,3835.26426086,0.0001989,2]
[311741895,1705371955206,1220.62975961,0.0001989,2]
[311741896,1705371955792,182.7245571,0.0001989,2]
[311741897,1705371956076,283.13537964,0.0001989,2]
[311741898,1705371957095,155.0,0.0001989,2]
[311741899,1705371959796,155.0,0.0001989,2]
[311741900,1705371959912,155.0,0.0001989,2]
[311741901,1705371961801,342.75344633,0.0001989,2]
[311741902,1705371963865,525.71355624,0.0001989,2]
[311741903,1705371964584,713.31992229,0.0001989,2]
[311741905,1705371966200,251.72028865,0.0001989,2]
[311741907,1705371971787,182.7245571,0.0001989,2]
[311741908,1705371972333,3835.26426086,0.0001989,2]
[311741909,1705371975197,409.80847579,0.0001989,2]
[311741910,1705371975760,190.42975937,0.0001989,2]
[311741911,1705371977799,340.65464315,0.0001989,2]
[311741912,1705371977907,198.59406288,0.0001989,2]
[311741913,1705371979079,240.73753991,0.0001989,2]
[311741914,1705371979983,-1941.20425562,0.000211,2]
[311741915,1705371980160,-39.61641338,0.000211,2]
[311741916,1705371989788,182.7245571,0.0001989,2]
[311741917,1705371992405,3835.26426086,0.0001989,2]
[311741918,1705372002301,167.925873,0.00020826,2]
[311741919,1705372005813,197.01519628,0.0001989,2]
[311741920,1705372012343,3741.91080341,0.0001989,2]
[311741927,1705372131499,-12000.0,0.00021099,2]
[311741928,1705372131592,-12000.0,0.00021099,2]
[311741929,1705372131741,-900.0,0.00021099,2]
[311741930,1705372131769,-11100.0,0.00021099,2]
[311741931,1705372131852,-12000.0,0.00021099,2]
[311741932,1705372131978,-1485.9009184,0.00021099,2]
[311741937,1705372173914,-800.05101124,0.00021096,2]
[311741938,1705372174037,-16.32757166,0.00021096,2]
[311741939,1705372187413,-672.74421522,0.00021096,2]
[311741941,1705372187528,-13.72947378,0.00021096,2]
[311742061,1705372237898,-688.53642166,0.00022074,2]
[311742062,1705372237908,-587.69337227,0.00022075,2]
[311742063,1705372237918,-213.18676181,0.00022076,2]
[311742064,1705372237928,-175.0415776,0.00022077,2]
[311742065,1705372237938,-322.7629785,0.00022077,2]
[311742066,1705372237947,-587.69337227,0.00022078,2]
[311742067,1705372237956,-155.0,0.00022078,2]
[311742068,1705372237966,-687.23089543,0.00022078,2]
[311742069,1705372237975,-2032.71,0.00022095,3]
[311742070,1705372237985,-155.49897147,0.00022099,2]
[311742071,1705372237994,-247.34828395,0.00022099,2]
[311742072,1705372238003,-643.52434414,0.000221,2]
[311742073,1705372238013,-250.57061438,0.000221,2]
[311742074,1705372238023,-679.24429502,0.000221,2]
[311742076,1705372238033,-156.38216111,0.000221,2]
[311742077,1705372238043,-178.67391792,0.000221,2]
[311742079,1705372238052,-161.48858357,0.000221,2]
[311742080,1705372238061,-155.57212949,0.000221,2]
[311742081,1705372238071,-417.39492017,0.000221,2]
[311742082,1705372238080,-1380.29206665,0.000221,2]
[311742083,1705372238089,-164.42093675,0.000221,2]
[311742084,1705372238100,-2469.02136601,0.00022101,2]
[311742085,1705372238109,-191.96384456,0.00022101,2]
[311742086,1705372238119,-329.10784795,0.00022101,2]
[311742087,1705372238129,-361.02080012,0.00022101,2]
[311742088,1705372238138,-155.50772151,0.00022101,2]
[311742089,1705372238147,-167.43884853,0.00022101,2]
[311742090,1705372238157,-594.38972109,0.00022101,2]
[311742091,1705372238167,-155.00310006,0.00022101,2]
[311742092,1705372238179,-155.57745472,0.00022101,2]